bitfinex-derivatives/quotes_SOLF0:USTF0_20250109
["timestamp","ask_amount","ask_price","bid_price","bid_amount"]
[1736424350545,2.6196,191.0,190.95,2.62]
[1736424351651,10.53861494,191.01,190.9,10.53861494]
[1736424351852,10.53861494,191.01,190.87,12.07381494]
[1736424352349,2.6197,190.98,190.93,2.6203]
[1736424353054,7.6797,190.98,190.93,2.6203]
[1736424354257,2.6199,190.97,190.93,2.6203]
[1736424354658,2.6199,190.97,190.92,2.6205]
[1736424357761,2.6199,190.97,190.87,12.07381494]
[1736424357960,2.6199,190.97,190.93,2.6204]
[1736424358160,5.06,190.98,190.87,12.07381494]
[1736424358362,5.06,190.98,190.96,2.62]
[1736424358765,5.06,190.98,190.9,10.53861494]
[1736424358961,5.06,190.98,190.93,10.53861494]
[1736424359264,5.06,190.98,190.9,10.53861494]
[1736424359464,5.06,190.98,190.87,12.07381494]
[1736424360266,2.6202,190.95,190.9,2.6208]
[1736424360459,15.59861494,190.98,190.85,4.56]
[1736424360660,1.4687,190.94,190.84,4.56]
[1736424360868,2.6208,190.91,190.84,4.56]
[1736424361064,1.4687,190.94,190.84,4.56]
[1736424361964,2.6207,190.91,190.85,2.6214]
[1736424362167,10.53861494,190.92,190.82,1.565]
[1736424362367,10.53861494,190.92,190.79,10.53861494]
[1736424362866,10.53861494,190.92,190.81,2.622]
[1736424363068,10.53861494,190.92,190.79,10.53861494]
[1736424364583,2.621,190.9,190.79,10.53861494]
[1736424364776,10.53861494,190.92,190.79,10.53861494]
[1736424367680,2.6212,190.87,190.81,2.622]
[1736424368081,10.53861494,190.92,190.81,2.622]
[1736424368377,10.53861494,190.92,190.82,2.6219]
[1736424369273,17.06861494,190.92,190.84,2.6216]
[1736424369479,17.06861494,190.92,190.79,10.53861494]
[1736424369684,2.6209,190.9,190.79,10.53861494]
[1736424370378,2.6212,190.88,190.79,10.53861494]
[1736424370782,17.06861494,190.92,190.84,2.6216]
[1736424370982,2.621,190.9,190.84,2.6216]
[1736424371882,2.6211,190.89,190.84,2.6216]
[1736424372381,17.06861494,190.92,190.86,2.6214]
[1736424373081,2.6208,190.9,190.86,2.6214]
[1736424373685,2.621,190.89,190.85,2.6215]
[1736424373880,17.06861494,190.92,190.79,10.53861494]
[1736424374277,17.06861494,190.92,190.83,2.6217]
[1736424374278,2.6211,190.89,190.83,2.6217]
[1736424374479,17.06861494,190.92,190.83,2.6217]
[1736424374979,10.53861494,190.89,190.79,10.53861494]
[1736424375184,3.0728,190.88,190.79,10.53861494]
[1736424375381,2.6215,190.85,190.81,2.6219]
[1736424375681,2.6215,190.85,190.79,10.53861494]
[1736424375885,2.6215,190.85,190.81,2.622]
[1736424376185,1.5171,190.87,190.79,10.53861494]
[1736424376387,2.6215,190.85,190.79,10.53861494]
[1736424377082,2.6215,190.85,190.81,2.622]
[1736424379488,2.6217,190.84,190.79,10.53861494]
[1736424379988,2.6217,190.84,190.79,13.16081494]
[1736424380187,2.6218,190.83,190.76,55.35913169]
[1736424380389,1.5171,190.87,190.76,55.35913169]
[1736424380584,10.53861494,190.86,190.77,2.6226]
[1736424381186,2.6219,190.83,190.78,2.6225]
[1736424381589,1.5171,190.87,190.76,55.35913169]
[1736424381889,2.6217,190.84,190.79,2.6223]
[1736424382085,1.5171,190.87,190.76,55.35913169]
[1736424382393,10.53861494,190.86,190.76,55.35913169]
[1736424382989,2.622,190.82,190.78,2.6224]
[1736424383783,10.53861494,190.86,190.75,2.6228]
[1736424383990,10.53861494,190.86,190.73,10.53861494]
[1736424384586,2.6222,190.8,190.73,10.53861494]
[1736424384790,10.53861494,190.86,190.73,10.53861494]
[1736424385586,2.6223,190.8,190.76,2.6227]
[1736424385792,10.53861494,190.86,190.73,10.53861494]
[1736424386895,2.6223,190.8,190.75,2.6228]
[1736424387289,10.53861494,190.86,190.73,10.53861494]
[1736424387594,2.6224,190.79,190.74,2.623]
[1736424388092,10.53861494,190.83,190.73,10.53861494]
[1736424388293,10.53861494,190.83,190.7,10.53861494]
[1736424388693,2.6228,190.76,190.71,2.6234]
[1736424389197,2.6228,190.76,190.72,2.6232]
[1736424389490,2.6228,190.76,190.7,10.53861494]
[1736424390195,2.6226,190.77,190.72,2.6233]
[1736424391195,2.6226,190.77,190.7,10.53861494]
[1736424391397,2.6226,190.77,190.73,2.6231]
[1736424392400,6.9826,190.77,190.73,2.6231]
[1736424393702,4.36,190.77,190.74,2.623]
[1736424393902,4.36,190.77,190.73,10.53861494]
[1736424394099,4.36,190.77,190.76,10.53861494]
[1736424394300,4.36,190.77,190.76,13.16131494]
[1736424394695,4.36,190.77,190.76,2.6227]
[1736424394901,4.36,190.77,190.75,2.6228]
[1736424395102,4.36,190.77,190.7,10.53861494]
[1736424395902,6.9826,190.77,190.7,10.53861494]
[1736424396303,6.9826,190.77,190.72,2.6232]
[1736424396902,6.9826,190.77,190.7,10.53861494]
[1736424397101,6.9826,190.77,190.73,2.6231]
[1736424398000,4.36,190.77,190.7,10.53861494]
[1736424398200,2.6228,190.76,190.72,2.6233]
[1736424400006,4.36,190.77,190.67,10.53861494]
[1736424400501,2.6238,190.69,190.62,7.24808692]
[1736424400707,2.6238,190.69,190.62,17.78670186]
[1736424400908,15.09861494,190.74,190.62,17.78670186]
[1736424401309,2.6235,190.71,190.66,2.624]
[1736424401908,15.09861494,190.74,190.62,10.53861494]
[1736424402106,2.6232,190.73,190.62,10.53861494]
[1736424402306,4.56,190.74,190.65,10.53861494]
[1736424402897,7.1831,190.74,190.69,2.6236]
[1736424403101,15.09861494,190.74,190.58,7.24808692]
[1736424403307,15.09861494,190.74,190.62,10.53861494]
[1736424405208,2.6237,190.7,190.66,2.6241]
[1736424405404,15.09861494,190.74,190.57,1.4882]
[1736424405713,15.09861494,190.74,190.6,10.53861494]
[1736424406606,15.09861494,190.74,190.64,2.6243]
[1736424407006,2.6238,190.69,190.64,2.6243]
[1736424409007,15.09861494,190.74,190.6,10.53861494]
[1736424409414,2.6236,190.7,190.66,2.6241]
[1736424410206,15.09861494,190.74,190.6,10.53861494]
[1736424410411,10.53861494,190.71,190.6,10.53861494]
[1736424410613,4.5929,190.7,190.6,10.53861494]
[1736424411307,10.53861494,190.68,190.57,12.02681494]
[1736424411506,10.53861494,190.68,190.55,7.24808692]
[1736424411812,10.53861494,190.68,190.54,10.53861494]
[1736424412003,10.53861494,190.68,190.57,10.53861494]
[1736424412910,4.5929,190.7,190.57,10.53861494]
[1736424413115,4.5929,190.7,190.6,10.53861494]
[1736424413413,2.6238,190.69,190.6,10.53861494]
[1736424413807,2.6238,190.69,190.64,2.6243]
[1736424415018,7.2165,190.7,190.66,2.6241]
[1736424415418,1.5803,190.7,190.63,10.53861494]
[1736424415913,2.6233,190.72,190.63,10.53861494]
[1736424416115,1.5574,190.75,190.63,10.53861494]
[1736424416516,4.1803,190.75,190.7,2.6234]
[1736424416818,3.1463,190.79,190.69,10.53861494]
[1736424417015,2.6226,190.78,190.73,2.623]
[1736424417215,5.22,190.78,190.73,2.623]
[1736424417511,5.22,190.78,190.69,10.53861494]
[1736424417715,4.63,190.77,190.69,10.53861494]
[1736424417917,7.2527,190.77,190.72,2.6232]
[1736424418418,4.19,190.76,190.72,2.6232]
[1736424419612,4.19,190.75,190.72,2.6232]
[1736424420414,4.19,190.75,190.69,10.53861494]
[1736424420608,4.19,190.75,190.65,1.5212]
[1736424420609,4.19,190.75,190.66,10.53861494]
[1736424420820,4.19,190.75,190.63,10.53861494]
[1736424421009,2.6235,190.71,190.66,2.6241]
[1736424421414,12.11921494,190.74,190.66,2.6241]
[1736424421612,2.6235,190.71,190.66,2.6241]
[1736424421815,16.81921494,190.74,190.66,2.6241]
[1736424422021,16.81921494,190.74,190.6,16.68811494]
[1736424422221,2.6239,190.68,190.6,12.12811494]
[1736424422816,2.6239,190.68,190.63,2.6245]
[1736424423421,2.6236,190.7,190.65,2.6242]
[1736424423722,1.6113,190.72,190.6,12.12811494]
[1736424423924,2.6238,190.69,190.62,2.6246]
[1736424424129,1.6113,190.72,190.62,2.6246]
[1736424424817,2.624,190.68,190.62,2.6246]
[1736424425722,2.624,190.68,190.63,2.6245]
[1736424426321,10.53861494,190.71,190.6,10.53861494]
[1736424426528,10.53861494,190.68,190.57,10.53861494]
[1736424426725,1.6197,190.67,190.57,10.53861494]
[1736424426934,3.1586,190.67,190.57,10.53861494]
[1736424427225,2.6248,190.62,190.57,2.6252]
[1736424427629,2.6245,190.64,190.56,2.6255]
[1736424427832,3.1586,190.67,190.56,2.6255]
[1736424428232,10.53861494,190.65,190.53,44.87257355]
[1736424428535,4.56,190.66,190.53,44.87257355]
[1736424428536,10.53861494,190.62,190.53,44.87257355]
[1736424428734,10.53861494,190.62,190.5,10.53861494]
[1736424429532,10.53861494,190.59,190.49,28.9923477]
[1736424429737,1.6207,190.58,190.49,28.9923477]
[1736424430041,3.1793,190.58,190.49,28.9923477]
[1736424430237,3.1793,190.58,190.47,13.16531494]
[1736424430238,2.626,190.53,190.47,13.16531494]
[1736424430637,2.626,190.53,190.48,0.1903]
[1736424431938,2.6255,190.56,190.5,2.6263]
[1736424432940,4.19,190.57,190.48,10.72891494]
[1736424433240,6.8154,190.57,190.48,10.72891494]
[1736424433647,4.19,190.57,190.48,10.72891494]
[1736424433840,5.7197,190.57,190.48,10.72891494]
[1736424434746,2.6257,190.55,190.49,2.6264]
[1736424434933,5.7197,190.57,190.48,10.72891494]
[1736424435436,8.3452,190.57,190.48,10.72891494]
[1736424435939,5.7197,190.57,190.48,10.72891494]
[1736424436143,4.19,190.57,190.48,10.72891494]
[1736424436737,2.6256,190.56,190.48,10.72891494]
[1736424436940,4.78,190.56,190.51,2.6261]
[1736424437640,4.78,190.56,190.52,2.6259]
[1736424438049,4.78,190.56,190.55,2.6256]
[1736424438635,0.8667,190.56,190.55,2.6256]
[1736424439443,1.568,190.65,190.6,2.6249]
[1736424440542,1.568,190.65,190.61,2.6248]
[1736424444450,1.6281,190.67,190.62,2.6246]
[1736424444645,1.6281,190.67,190.59,4.56]
[1736424444845,1.4984,190.7,190.61,10.53861494]
[1736424445044,4.1221,190.7,190.61,10.53861494]
[1736424445444,1.4984,190.7,190.61,10.53861494]
[1736424446044,3.1062,190.73,190.64,10.53861494]
[1736424446247,4.38,190.72,190.64,10.53861494]
[1736424448352,7.0033,190.72,190.67,2.624]
[1736424448648,2.6235,190.71,190.66,2.6241]
[1736424449051,4.38,190.72,190.61,10.53861494]
[1736424449551,2.6237,190.7,190.64,2.6243]
[1736424449955,4.19,190.71,190.61,10.53861494]
[1736424450255,4.19,190.71,190.59,4.56]
[1736424450653,4.19,190.71,190.58,10.53861494]
[1736424450853,2.6237,190.69,190.63,2.6244]
[1736424451052,4.19,190.71,190.61,10.53861494]
[1736424451556,4.19,190.71,190.64,10.53861494]
[1736424452151,4.19,190.71,190.68,2.6238]
[1736424453453,4.19,190.71,190.64,10.53861494]
[1736424454653,4.19,190.71,190.61,10.53861494]
[1736424455855,4.19,190.71,190.59,4.56]
[1736424456057,10.53861494,190.7,190.59,4.56]
[1736424456651,10.53861494,190.67,190.55,10.53861494]
[1736424456956,2.6245,190.63,190.58,2.6252]
[1736424458053,2.6245,190.63,190.55,10.53861494]
[1736424458258,2.6245,190.63,190.59,2.6251]
[1736424458759,2.6245,190.63,190.55,10.53861494]
[1736424458954,10.53861494,190.64,190.52,10.53861494]
[1736424459163,10.53861494,190.64,190.52,15.09861494]
[1736424459457,2.6249,190.61,190.52,15.09861494]
[1736424459954,2.6249,190.61,190.54,2.6257]
[1736424460158,2.6249,190.61,190.52,15.09861494]
[1736424461059,2.6249,190.61,190.56,2.6254]
[1736424461955,2.625,190.6,190.56,2.6254]
[1736424462161,10.53861494,190.64,190.56,2.6254]
[1736424462355,2.6249,190.61,190.56,2.6254]
[1736424464660,1.4696,190.65,190.55,10.53861494]
[1736424465360,4.19,190.64,190.55,10.53861494]
[1736424466360,4.19,190.64,190.58,10.53861494]
[1736424466955,4.19,190.64,190.63,2.6245]
[1736424468266,4.19,190.64,190.62,2.6246]
[1736424468565,4.19,190.64,190.59,4.56]
[1736424469665,4.19,190.64,190.6,2.6249]
[1736424469865,4.19,190.64,190.58,10.53861494]
[1736424470065,4.19,190.64,190.55,15.09861494]
[1736424470259,2.6247,190.63,190.58,2.6252]
[1736424470462,4.19,190.64,190.58,2.6252]
[1736424471058,4.19,190.64,190.52,10.53861494]
[1736424471367,1.4907,190.63,190.52,15.09861494]
[1736424471563,2.9662,190.63,190.52,15.09861494]
[1736424472068,2.6252,190.59,190.54,2.6257]
[1736424473068,2.9662,190.63,190.52,15.09861494]
[1736424473368,2.625,190.6,190.55,2.6255]
[1736424474765,2.625,190.6,190.52,10.53861494]
[1736424475672,2.625,190.6,190.56,2.6255]
[1736424476269,2.625,190.6,190.52,10.53861494]
[1736424476471,2.625,190.6,190.55,2.6256]
[1736424476666,5.49,190.59,190.55,2.6256]
[1736424476969,8.1151,190.59,190.55,2.6256]
[1736424477673,5.49,190.59,190.52,10.53861494]
[1736424477969,2.6252,190.58,190.54,2.6258]
[1736424478665,5.49,190.59,190.52,10.53861494]
[1736424478866,4.19,190.57,190.55,2.6256]
[1736424479066,4.19,190.57,190.52,10.53861494]
[1736424479267,4.19,190.57,190.54,2.6257]
[1736424479667,4.19,190.57,190.52,10.53861494]
[1736424479865,4.19,190.57,190.51,2.6262]
[1736424480069,4.19,190.57,190.47,12.00593692]
[1736424480268,4.19,190.57,190.47,22.54455186]
[1736424480470,2.6259,190.54,190.48,2.6265]
[1736424480671,3.1636,190.56,190.47,10.73646494]
[1736424480870,10.53861494,190.55,190.47,0.19785]
[1736424481070,14.72861494,190.55,190.47,0.19785]
[1736424482071,2.6264,190.5,190.47,0.19785]
[1736424482269,2.6264,190.5,190.45,2.627]
[1736424482676,14.72861494,190.55,190.43,10.53861494]
[1736424482874,2.6265,190.49,190.44,2.6271]
[1736424483077,2.6265,190.49,190.43,10.53861494]
[1736424484082,14.72861494,190.55,190.45,2.627]
[1736424484379,14.72861494,190.55,190.43,10.53861494]
[1736424484576,4.19,190.55,190.43,10.53861494]
[1736424485180,2.6262,190.51,190.46,2.6268]
[1736424487677,2.6263,190.5,190.46,2.6268]
[1736424488075,10.53861494,190.54,190.43,10.53861494]
[1736424488279,2.6265,190.49,190.45,2.627]
[1736424488579,2.6265,190.49,190.42,4.56]
[1736424489078,2.6264,190.5,190.42,4.56]
[1736424489381,4.19,190.55,190.43,10.53861494]
[1736424489682,4.19,190.55,190.46,10.53861494]
[1736424489874,2.6258,190.54,190.49,2.6264]
[1736424490072,4.19,190.55,190.46,10.53861494]
[1736424490478,14.72861494,190.55,190.43,10.53861494]
[1736424491585,2.626,190.53,190.43,10.53861494]
[1736424492080,2.626,190.53,190.48,2.6266]
[1736424492680,2.6261,190.52,190.48,2.6266]
[1736424492875,2.6261,190.52,190.43,10.53861494]
[1736424493077,2.6261,190.52,190.47,2.6267]
[1736424493584,10.53861494,190.55,190.43,10.53861494]
[1736424493880,10.53861494,190.52,190.42,4.56]
[1736424494080,10.53861494,190.52,190.43,2.6272]
[1736424494272,10.53861494,190.52,190.4,10.53861494]
[1736424494676,2.6265,190.49,190.4,10.53861494]
[1736424494881,10.53861494,190.52,190.4,10.53861494]
[1736424495082,4.48,190.49,190.4,10.53861494]
[1736424495484,4.19,190.48,190.4,10.53861494]
[1736424495882,8.39,190.47,190.43,2.6272]
[1736424496282,11.0169,190.47,190.42,2.6274]
[1736424498284,2.6269,190.46,190.38,8.333929]
[1736424498881,4.2,190.45,190.38,8.333929]
[1736424500085,4.2,190.45,190.42,2.6274]
[1736424500380,4.2,190.45,190.4,10.53861494]
[1736424500986,4.2,190.45,190.44,2.6272]
[1736424502489,0.4729,190.47,190.46,2.6269]
[1736424502679,4.19,190.48,190.46,10.53861494]
[1736424502882,4.48,190.49,190.46,10.53861494]
[1736424503390,10.53861494,190.61,190.46,10.53861494]
[1736424503683,10.53861494,190.61,190.49,6.34861494]
[1736424503887,18.20861494,190.61,190.49,6.34861494]
[1736424504196,22.39861494,190.61,190.49,6.34861494]
[1736424504688,2.6253,190.58,190.52,2.626]
[1736424504888,4.19,190.57,190.49,6.34861494]
[1736424505385,4.19,190.57,190.48,2.6265]
[1736424505783,2.6257,190.55,190.48,2.6265]
[1736424506082,7.2742,190.57,190.47,4.56]
[1736424506289,1.4967,190.56,190.46,13.16541494]
[1736424506479,10.53861494,190.55,190.45,4.56]
[1736424506681,10.53861494,190.55,190.45,2.627]
[1736424506886,10.53861494,190.55,190.43,10.53861494]
[1736424507187,10.53861494,190.52,190.42,9.87548692]
[1736424507388,10.53861494,190.52,190.42,2.6274]
[1736424507690,2.6268,190.47,190.41,7.1875]
[1736424508082,2.6269,190.47,190.41,7.1875]
[1736424508379,10.53861494,190.49,190.41,4.56]
[1736424508684,3.2559,190.48,190.38,3.773929]
[1736424508881,2.6271,190.45,190.39,2.6277]
[1736424509487,2.6271,190.45,190.4,2.6277]
[1736424511092,2.6269,190.46,190.4,2.6277]
[1736424512094,2.6269,190.46,190.41,2.6275]
[1736424512682,3.2559,190.48,190.39,10.53861494]
[1736424513291,5.8825,190.48,190.41,2.6275]
[1736424513494,5.8825,190.48,190.39,10.53861494]
[1736424513708,3.2559,190.48,190.39,10.53861494]
[1736424514493,2.6268,190.47,190.42,2.6273]
[1736424515998,2.6269,190.46,190.41,2.6275]
[1736424516191,2.6269,190.46,190.38,14.31254394]
[1736424516796,3.2559,190.48,190.38,14.31254394]
[1736424517198,2.6271,190.45,190.39,2.6278]
[1736424517694,2.6272,190.44,190.39,2.6278]
[1736424518797,2.627,190.45,190.4,2.6276]
[1736424519396,3.2559,190.48,190.38,18.87254394]
[1736424520992,3.2559,190.48,190.43,2.6272]
[1736424521194,3.2559,190.48,190.37,10.53861494]
[1736424522192,2.6269,190.46,190.41,2.6275]
[1736424522788,3.2559,190.48,190.36,4.56]
[1736424523196,4.8041,190.48,190.36,4.56]
[1736424524091,2.6272,190.44,190.4,2.6277]
[1736424526097,2.627,190.45,190.41,2.6275]
[1736424531094,4.2,190.44,190.41,2.6275]
[1736424532296,4.77,190.43,190.41,2.6275]
[1736424532500,4.77,190.43,190.38,2.628]
[1736424532501,2.6275,190.42,190.38,2.628]
[1736424532699,2.6275,190.42,190.35,10.53861494]
[1736424533095,2.6275,190.42,190.37,2.628]
[1736424533300,4.77,190.43,190.35,10.53861494]
[1736424533609,4.77,190.43,190.37,2.6281]
[1736424533804,0.39,190.42,190.35,10.53861494]
[1736424534406,7.55,190.42,190.35,10.53861494]
[1736424535499,7.55,190.42,190.41,2.6276]
[1736424536615,4.2,190.44,190.41,15.09861494]
[1736424536820,3.1709,190.55,190.45,10.53861494]
[1736424537013,5.7966,190.55,190.45,10.53861494]
[1736424537207,3.1709,190.55,190.51,2.6261]
[1736424537413,3.1709,190.55,190.48,10.53861494]
[1736424537613,1.508,190.57,190.48,10.53861494]
[1736424537812,9.19,190.56,190.48,15.09861494]
[1736424538016,9.19,190.56,190.53,2.6258]
[1736424538316,9.19,190.56,190.51,10.53861494]
[1736424539520,9.19,190.56,190.53,2.6258]
[1736424540313,9.19,190.56,190.5,2.6263]
[1736424540816,9.19,190.56,190.48,15.09861494]
[1736424541227,9.19,190.56,190.51,10.53861494]
[1736424541416,9.19,190.56,190.55,2.6256]
[1736424542022,9.19,190.56,190.54,2.6258]
[1736424542431,9.19,190.56,190.54,10.53861494]
[1736424542617,9.19,190.56,190.55,2.6256]
[1736424542820,9.19,190.56,190.55,7.1856]
[1736424543024,1.5128,190.68,190.55,4.56]
[1736424543227,1.5128,190.68,190.62,2.6247]
[1736424543427,1.5128,190.68,190.58,10.53861494]
[1736424543829,1.5128,190.68,190.59,2.625]
[1736424544126,1.5128,190.68,190.58,10.53861494]
[1736424544329,2.6244,190.65,190.58,13.16381494]
[1736424544829,23.84861494,190.67,190.56,2.6255]
[1736424545728,2.6246,190.63,190.56,2.6255]
[1736424546728,2.6243,190.65,190.59,2.6251]
[1736424547029,13.31,190.67,190.58,10.53861494]
[1736424548119,15.9341,190.67,190.61,2.6247]
[1736424548522,13.31,190.67,190.58,10.53861494]
[1736424548829,13.31,190.67,190.61,10.53861494]
[1736424549026,13.31,190.67,190.64,2.6243]
[1736424549226,13.31,190.67,190.61,10.53861494]
[1736424550132,13.31,190.67,190.62,4.56]
[1736424550333,13.31,190.67,190.66,2.6241]
[1736424552336,4.8659,190.67,190.66,2.6241]
[1736424552524,10.53861494,190.82,190.64,10.53861494]
[1736424552729,2.6222,190.8,190.7,10.53861494]
[1736424553029,10.53861494,190.79,190.67,10.53861494]
[1736424553233,2.6229,190.75,190.67,10.53861494]
[1736424553531,2.03,190.74,190.69,2.6237]
[1736424553733,8.84,190.73,190.69,2.6237]
[1736424553933,8.84,190.73,190.67,10.53861494]
[1736424554135,8.84,190.73,190.71,2.6234]
[1736424554324,8.84,190.73,190.7,10.53861494]
[1736424555238,8.84,190.73,190.72,2.6233]
[1736424557334,8.84,190.73,190.7,10.53861494]
[1736424558140,8.84,190.73,190.71,2.6234]
[1736424558740,8.84,190.73,190.69,4.56]
[1736424559140,8.84,190.73,190.7,10.53861494]
[1736424559338,8.84,190.73,190.72,2.6233]
[1736424560640,13.03,190.73,190.72,2.6233]
[1736424561936,4.7806,190.73,190.72,2.6233]
[1736424562139,1.5954,190.85,190.7,21.07722988]
[1736424562444,1.5954,190.85,190.78,10.53861494]
[1736424562741,3.0326,190.86,190.78,10.53861494]
[1736424562946,1.4925,190.86,190.81,10.53861494]
[1736424563337,6.9525,190.86,190.81,10.53861494]
[1736424563538,5.46,190.86,190.81,10.53861494]
[1736424564646,5.46,190.86,190.85,2.6215]
[1736424565441,5.46,190.86,190.85,7.1815]
[1736424571045,5.46,190.86,190.85,2.6215]
[1736424571251,5.46,190.86,190.85,4.56]
[1736424571549,5.46,190.86,190.8,10.53861494]
[1736424571751,5.46,190.86,190.78,4.56]
[1736424572751,2.6219,190.83,190.75,2.6228]
[1736424572954,2.6219,190.83,190.74,15.09861494]
[1736424573355,1.6269,190.85,190.74,15.09861494]
[1736424574353,4.2484,190.85,190.78,2.6224]
[1736424575652,2.6218,190.83,190.77,2.6226]
[1736424577655,2.6217,190.84,190.74,15.09861494]
[1736424577868,1.6269,190.85,190.77,10.53861494]
[1736424579151,1.6269,190.85,190.8,2.6221]
[1736424580661,4.19,190.84,190.8,2.6221]
[1736424583059,4.19,190.84,190.77,10.53861494]
[1736424583957,4.19,190.84,190.82,2.6219]
[1736424584662,4.19,190.84,190.77,10.53861494]
[1736424584663,4.19,190.84,190.83,2.6218]
[1736424594563,8.89,190.84,190.83,2.6218]
[1736424595164,1.5155,190.91,190.89,2.6209]
[1736424595465,1.5155,190.91,190.9,6.74781951]
[1736424597163,1.5155,190.91,190.9,9.36861951]
[1736424597470,6.14,190.92,190.87,10.54317859]
[1736424599070,6.14,190.92,190.9,2.6207]
[1736424599271,6.14,190.92,190.87,10.54317859]
[1736424600473,6.14,190.92,190.9,10.54317859]
[1736424601676,1.55,190.96,190.9,10.54317859]
[1736424601878,5.6409,191.01,190.9,10.54317859]
[1736424602173,3.0215,191.01,190.93,10.54317859]
[1736424602671,3.0215,191.01,190.97,2.6197]
[1736424603072,5.6,191.0,190.93,10.54317859]
[1736424603273,5.6,191.0,190.96,10.54317859]
[1736424603774,5.6,191.0,190.99,2.6196]
[1736424603969,5.6,191.0,190.99,13.16277859]
[1736424606573,3.0605,191.07,190.99,10.54317859]
[1736424606781,3.0605,191.07,191.02,10.54317859]
[1736424606976,3.0605,191.07,191.02,15.10317859]
[1736424607275,1.5527,191.11,191.02,15.10317859]
[1736424607872,10.4327,191.11,191.02,15.10317859]
[1736424608079,8.88,191.11,191.05,10.54317859]
[1736424608275,8.88,191.11,191.06,2.6185]
[1736424608480,8.88,191.11,191.05,10.54317859]
[1736424609075,8.88,191.11,191.09,2.6181]
[1736424609277,8.88,191.11,191.08,10.54317859]
[1736424609583,8.88,191.11,191.09,4.54]
[1736424610485,8.88,191.11,191.1,2.6181]
[1736424611379,2.6171,191.18,191.11,2.6179]
[1736424611681,2.6171,191.18,191.12,10.54317859]
[1736424611879,2.6174,191.15,191.09,17.70127859]
[1736424612181,3.1187,191.14,191.09,15.08317859]
[1736424612373,2.618,191.11,191.06,10.54317859]
[1736424612880,9.11,191.11,191.06,10.54317859]
[1736424613482,9.11,191.11,191.09,10.54317859]
[1736424613884,3.1187,191.14,191.09,15.08317859]
[1736424614182,3.1187,191.14,191.12,10.54317859]
[1736424614381,1.4844,191.2,191.12,10.54317859]
[1736424614584,2.617,191.18,191.12,10.54317859]
[1736424615183,5.46,191.17,191.12,10.54317859]
[1736424615481,5.46,191.17,191.12,13.16097859]
[1736424618277,5.46,191.17,191.13,2.6176]
[1736424618880,5.46,191.17,191.12,10.54317859]
[1736424619074,5.46,191.17,191.14,2.6175]
[1736424619279,5.46,191.17,191.12,10.54317859]
[1736424620086,5.46,191.17,191.13,2.6177]
[1736424620286,5.46,191.17,191.12,10.54317859]
[1736424621189,5.46,191.17,191.12,13.16087859]
[1736424622883,2.6175,191.15,191.12,10.54317859]
[1736424623088,5.46,191.17,191.09,10.54317859]
[1736424623386,5.46,191.17,191.06,15.08317859]
[1736424623587,2.6182,191.1,191.06,10.54317859]
[1736424623786,3.0392,191.09,191.06,10.54317859]
[1736424624186,3.0392,191.09,191.06,13.16167859]
[1736424625287,3.0392,191.09,191.08,2.6184]
[1736424625490,3.0392,191.09,191.06,10.54317859]
[1736424626192,3.0392,191.09,191.07,2.6184]
[1736424627593,5.46,191.17,191.08,2.6182]
[1736424627894,3.0956,191.16,191.1,10.54317859]
[1736424628088,2.6174,191.15,191.1,10.54317859]
[1736424628493,3.0956,191.16,191.1,10.54317859]
[1736424628793,3.0956,191.16,191.07,10.54317859]
[1736424629293,10.54317859,191.15,191.0,4.54]
[1736424629493,10.54317859,191.15,191.03,10.54317859]
[1736424629691,2.6179,191.12,191.04,2.6188]
[1736424629892,1.5986,191.11,191.03,10.54317859]
[1736424630288,2.6182,191.1,191.06,10.54317859]